{"text_format":"1","workbook":"xlsx","n_sheets":4,"sheets":["Cerere de Finantare","Sectiunea E","A8-Detalii privind terenul ","Asociati"],"not_rendered":{"charts":0,"images":1,"macros":1,"external_links":0,"defined_names":12,"comments":0,"pivot_tables":0},"unopened":[],"bounds":{"document_bytes":16777216,"sheet_cells":100000,"rows_first":2000,"rows_last":500,"rows_between":2000,"halvings":0,"cell_chars":16384,"cell_head_chars":4096},"cells_cut":0,"cells_raw":0,"read":"whole","date_system":"1900"}

{"sheet":"Cerere de Finantare","index":0,"n_rows":452,"n_cols":58,"rows_kept":452,"cut":false,"hidden":false,"merged":[[317,53,317,56],[309,53,309,56],[318,3,318,52],[319,3,319,52],[320,3,320,52],[360,0,360,29],[360,30,360,34],[360,35,360,41],[360,42,360,49],[360,50,360,54],[360,55,360,60],[313,38,313,43],[313,44,313,52],[313,53,313,56],[313,57,313,59],[315,44,315,52],[315,53,315,56],[372,55,372,60],[373,30,373,34],[373,35,373,41],[373,42,373,49],[373,50,373,54],[373,55,373,60],[368,30,368,34],[368,35,368,41],[368,42,368,49],[368,50,368,54],[368,55,368,60],[369,30,369,34],[369,35,369,41],[369,42,369,49],[369,50,369,54],[369,55,369,60],[370,30,370,34],[370,35,370,41],[370,42,370,49],[370,50,370,54],[370,55,370,60],[371,30,371,34],[244,4,244,6],[317,19,317,37],[317,38,317,43],[317,44,317,52],[316,19,316,37],[316,38,316,43],[316,44,316,52],[239,24,239,49],[252,21,253,26],[252,28,253,35],[252,37,253,48],[278,1,278,9],[277,36,277,44],[274,1,274,37],[275,1,275,19],[275,22,275,39],[275,42,275,58],[314,19,314,37],[314,38,314,43],[314,44,314,52],[314,53,314,56],[314,57,314,59],[315,19,315,37],[315,38,315,43],[316,57,316,59],[242,28,242,35],[243,28,244,35],[246,1,246,32],[247,3,247,10],[247,24,247,49],[248,3,248,16],[248,24,248,49],[251,4,251,15],[251,18,251,20],[251,21,251,26],[251,28,251,35],[251,37,251,48],[251,51,251,58],[242,37,242,48],[243,37,244,48],[242,51,242,58],[243,51,244,58],[315,57,315,59],[316,53,316,56],[252,4,252,6],[252,7,252,9],[252,10,252,15],[252,18,253,20],[188,1,188,3],[188,4,188,6],[188,7,188,58],[190,1,190,3],[190,4,190,6],[192,1,192,3],[210,1,210,38],[211,1,211,38],[217,11,217,32],[216,11,216,32],[215,22,215,40],[217,34,217,37],[216,34,216,37],[217,39,217,42],[216,39,216,42],[210,41,210,58],[216,44,216,47],[217,44,217,47],[216,49,216,51],[217,49,217,51],[216,53,216,56],[217,53,217,56],[214,1,214,19],[214,22,214,39],[184,1,184,3],[184,4,184,6],[184,7,184,58],[185,1,185,3],[185,4,185,6],[187,1,187,3],[187,4,187,6],[176,20,176,30],[179,4,179,6],[179,1,179,3],[179,7,179,58],[180,1,180,3],[180,4,180,6],[180,7,180,58],[181,1,181,3],[181,4,181,6],[181,7,181,58],[182,7,182,58],[182,1,182,6],[185,7,185,58],[187,7,187,58],[178,0,178,58],[183,1,183,58],[186,1,186,58],[129,5,129,8],[129,9,129,53],[143,6,143,36],[144,6,144,36],[148,5,148,57],[173,1,173,38],[175,2,175,58],[155,5,155,57],[157,2,160,58],[162,2,162,58],[163,1,163,14],[164,1,164,14],[163,16,163,34],[164,16,164,34],[163,36,163,58],[164,36,164,58],[165,1,165,14],[166,3,166,14],[167,3,167,14],[168,3,168,49],[166,16,166,21],[167,16,167,21],[166,23,166,29],[167,23,167,29],[151,0,151,8],[150,9,150,58],[151,9,151,58],[152,0,152,8],[152,9,152,58],[146,5,146,57],[147,5,147,57],[149,5,149,57],[150,0,150,8],[101,7,101,27],[109,5,109,16],[111,5,111,16],[112,5,112,8],[112,9,112,53],[114,5,114,16],[103,7,103,22],[105,7,105,23],[106,7,106,23],[107,7,107,23],[108,5,108,16],[153,0,153,8],[154,0,154,8],[153,9,153,58],[154,9,154,58],[169,1,169,58],[170,1,170,24],[171,1,171,24],[170,26,170,41],[171,26,171,41],[170,43,170,58],[171,43,171,58],[166,32,166,40],[167,32,167,40],[166,43,166,50],[167,43,167,50],[156,5,156,57],[123,7,123,23],[124,7,124,23],[125,5,125,16],[126,5,126,16],[117,7,117,23],[128,5,128,16],[115,7,115,23],[116,7,116,23],[118,7,118,27],[119,5,119,16],[120,7,120,22],[121,7,121,23],[122,7,122,23],[127,5,127,41],[399,0,399,2],[400,0,400,2],[401,0,401,2],[100,7,100,23],[104,7,104,23],[102,5,102,16],[376,30,376,34],[376,35,376,41],[376,42,376,49],[377,0,377,29],[377,30,377,34],[377,35,377,41],[377,42,377,49],[372,42,372,49],[356,30,356,34],[356,35,356,41],[357,0,357,29],[357,30,357,34],[357,35,357,41],[357,42,357,49],[361,0,361,29],[361,30,361,34],[361,35,361,41],[361,42,361,49],[372,30,372,34],[372,35,372,41],[376,50,376,54],[376,55,376,60],[377,50,377,54],[372,50,372,54],[357,50,357,54],[357,55,357,60],[361,50,361,54],[361,55,361,60],[371,35,371,41],[371,42,371,49],[366,30,366,34],[366,35,366,41],[366,42,366,49],[367,30,367,34],[367,35,367,41],[367,42,367,49],[367,50,367,54],[367,55,367,60],[377,55,377,60],[374,30,374,34],[374,35,374,41],[374,42,374,49],[374,50,374,54],[374,55,374,60],[375,30,375,34],[375,35,375,41],[375,42,375,49],[375,50,375,54],[375,55,375,60],[379,0,379,60],[380,0,380,60],[382,0,382,60],[390,3,390,60],[388,3,388,60],[389,3,389,60],[387,3,387,60],[386,0,386,60],[381,1,381,34],[383,1,385,59],[387,0,387,2],[388,0,388,2],[389,0,389,2],[390,0,390,2],[355,50,355,54],[355,55,355,60],[356,42,356,49],[356,50,356,54],[356,55,356,60],[364,30,364,34],[364,35,364,41],[364,42,364,49],[364,50,364,54],[364,55,364,60],[362,30,362,34],[362,35,362,41],[362,42,362,49],[362,50,362,54],[362,55,362,60],[363,30,363,34],[363,35,363,41],[363,42,363,49],[363,50,363,54],[363,55,363,60],[355,42,355,49],[351,30,351,34],[351,35,351,41],[351,42,351,49],[351,50,351,54],[351,55,351,60],[366,50,366,54],[366,55,366,60],[358,30,358,34],[358,35,358,41],[358,42,358,49],[358,50,358,54],[358,55,358,60],[359,30,359,34],[359,35,359,41],[359,42,359,49],[359,50,359,54],[359,55,359,60],[354,30,354,34],[354,35,354,41],[354,42,354,49],[354,50,354,54],[354,55,354,60],[355,30,355,34],[355,35,355,41],[352,30,352,34],[352,35,352,41],[352,42,352,49],[352,50,352,54],[352,55,352,60],[353,30,353,34],[353,35,353,41],[353,42,353,49],[353,50,353,54],[353,55,353,60],[347,30,347,34],[347,35,347,41],[347,42,347,49],[347,50,347,54],[347,55,347,60],[348,30,348,34],[348,35,348,41],[348,42,348,49],[348,50,348,54],[348,55,348,60],[349,35,349,41],[349,42,349,49],[349,50,349,54],[349,55,349,60],[350,30,350,34],[350,35,350,41],[350,42,350,49],[350,50,350,54],[350,55,350,60],[349,30,349,34],[343,30,343,34],[343,35,343,41],[343,42,343,49],[343,50,343,54],[343,55,343,60],[344,30,344,34],[344,35,344,41],[344,42,344,49],[344,50,344,54],[344,55,344,60],[341,30,341,34],[341,35,341,41],[341,42,341,49],[341,50,341,54],[341,55,341,60],[342,30,342,34],[342,35,342,41],[342,42,342,49],[342,50,342,54],[342,55,342,60],[345,35,345,41],[345,42,345,49],[345,50,345,54],[345,55,345,60],[346,30,346,34],[346,35,346,41],[346,42,346,49],[346,50,346,54],[346,55,346,60],[345,30,345,34],[342,0,342,29],[343,0,343,29],[344,0,344,29],[345,0,345,29],[346,0,346,29],[347,0,347,29],[348,0,348,29],[349,0,349,29],[350,0,350,29],[366,0,366,29],[372,0,372,29],[373,0,373,29],[374,0,374,29],[375,0,375,29],[376,0,376,29],[351,0,351,29],[352,0,352,29],[353,0,353,29],[354,0,354,29],[355,0,355,29],[358,0,358,29],[359,0,359,29],[364,0,364,29],[356,0,356,29],[362,0,362,29],[363,0,363,29],[367,0,367,29],[368,0,368,29],[369,0,369,29],[370,0,370,29],[371,0,371,29],[340,0,340,29],[340,30,340,34],[340,35,340,41],[340,42,340,49],[340,50,340,54],[340,55,340,60],[330,30,330,49],[330,50,330,60],[341,0,341,29],[338,0,338,29],[338,30,338,34],[338,35,338,41],[338,42,338,49],[338,50,338,54],[338,55,338,60],[339,0,339,29],[339,30,339,34],[339,35,339,41],[339,42,339,49],[339,50,339,54],[339,55,339,60],[336,0,336,29],[336,30,336,34],[336,35,336,41],[332,0,332,29],[332,30,332,34],[332,35,332,41],[332,42,332,49],[332,50,332,54],[332,55,332,60],[333,0,333,29],[333,30,333,34],[333,35,333,41],[333,42,333,49],[333,50,333,54],[333,55,333,60],[337,55,337,60],[334,0,334,29],[334,30,334,34],[334,35,334,41],[334,42,334,49],[334,50,334,54],[334,55,334,60],[335,0,335,29],[335,30,335,34],[335,35,335,41],[335,42,335,49],[335,50,335,54],[335,55,335,60],[336,42,336,49],[336,50,336,54],[336,55,336,60],[337,0,337,29],[337,30,337,34],[337,35,337,41],[337,42,337,49],[337,50,337,54],[331,42,331,49],[331,50,331,54],[331,55,331,60],[329,0,329,29],[324,30,324,60],[326,0,327,54],[326,55,326,60],[327,55,327,60],[328,0,328,60],[329,30,329,34],[329,35,329,41],[329,42,329,49],[329,50,329,54],[329,55,329,60],[49,13,49,25],[55,1,55,13],[55,15,55,25],[55,27,55,37],[55,39,55,48],[29,1,29,59],[31,1,34,59],[36,1,45,59],[28,48,28,59],[12,20,13,20],[12,30,13,30],[12,31,13,31],[12,32,13,32],[12,33,13,33],[12,34,13,34],[14,30,14,34],[14,20,14,23],[12,22,13,22],[12,23,13,23],[12,25,13,25],[12,27,13,27],[12,28,13,28],[0,6,0,60],[1,6,1,60],[7,0,7,34],[8,0,8,34],[10,7,10,34],[10,0,10,5],[6,36,6,60],[3,42,3,60],[12,0,12,5],[12,7,13,7],[12,9,13,9],[12,10,13,10],[12,12,13,12],[5,0,6,34],[5,36,5,60],[13,0,13,5],[12,21,13,21],[10,36,10,60],[11,36,12,60],[12,13,13,13],[12,15,13,15],[12,16,13,16],[12,17,13,17],[12,18,13,18],[15,30,15,34],[16,30,16,34],[17,30,17,34],[14,6,14,8],[15,6,15,8],[16,6,16,8],[14,9,14,11],[14,12,14,14],[15,12,15,14],[14,27,14,28],[15,27,15,28],[14,24,14,26],[15,24,15,26],[16,12,16,14],[15,9,15,11],[15,20,15,23],[16,20,16,23],[17,20,17,23],[14,15,14,18],[15,15,15,18],[57,1,61,13],[67,15,67,25],[67,27,67,37],[83,15,83,25],[83,27,83,37],[83,39,83,48],[97,5,97,16],[98,33,98,43],[18,0,18,7],[18,9,18,20],[35,1,35,22],[28,1,28,15],[22,0,22,16],[23,0,23,60],[19,0,19,21],[20,0,20,7],[21,0,21,21],[30,1,30,16],[55,50,55,58],[49,27,49,40],[49,41,49,59],[47,2,47,19],[48,0,48,15],[49,0,49,12],[59,15,59,25],[59,27,59,37],[59,39,59,48],[59,50,59,58],[75,15,75,25],[75,27,75,37],[75,39,75,48],[75,50,75,58],[67,50,67,58],[83,50,83,58],[95,1,95,22],[91,27,91,37],[91,39,91,48],[91,50,91,58],[91,15,91,25],[98,28,98,30],[73,1,77,13],[67,39,67,48],[65,1,69,13],[89,1,93,13],[81,1,85,13],[217,1,217,9],[220,1,220,13],[221,1,221,13],[220,20,220,32],[221,20,221,32],[220,36,220,58],[221,36,221,58],[218,1,218,10],[195,0,195,60],[199,43,199,58],[206,17,206,30],[206,1,206,16],[196,0,196,60],[197,1,197,18],[198,1,199,15],[198,19,198,39],[199,19,199,39],[198,43,198,58],[204,1,204,29],[204,32,204,33],[204,34,204,35],[204,36,204,37],[204,38,204,39],[204,41,204,42],[200,2,200,14],[200,19,200,39],[200,43,200,58],[202,40,202,58],[208,24,208,37],[208,51,208,58],[215,1,215,19],[215,42,215,58],[216,1,216,9],[204,43,204,44],[204,45,204,46],[204,47,204,48],[204,50,204,51],[204,52,204,53],[204,54,204,55],[204,56,204,57],[206,48,206,55],[214,42,214,58],[219,1,219,10],[218,12,218,21],[219,12,219,21],[229,4,229,13],[229,16,229,23],[229,26,229,34],[228,47,230,57],[229,36,229,46],[235,0,235,60],[226,47,226,57],[227,47,227,57],[218,23,218,35],[219,23,219,35],[219,37,219,59],[218,37,218,59],[233,2,233,59],[278,36,278,45],[277,54,277,58],[277,48,277,51],[278,48,278,51],[236,1,236,32],[223,1,223,58],[224,1,224,58],[226,3,227,13],[226,14,227,24],[226,25,227,35],[226,36,227,46],[244,7,244,9],[244,10,244,15],[242,18,242,20],[242,21,242,26],[243,21,244,26],[243,18,244,20],[238,3,238,10],[239,3,239,16],[238,24,238,49],[242,4,242,15],[243,4,243,6],[243,7,243,9],[243,10,243,15],[299,1,299,14],[299,15,299,56],[300,1,300,13],[301,1,301,13],[301,15,301,27],[301,29,301,40],[301,41,301,56],[252,51,253,58],[253,4,253,6],[253,7,253,9],[282,1,282,23],[279,38,279,50],[280,38,280,50],[280,1,280,13],[280,20,280,32],[256,1,256,3],[256,4,256,10],[256,12,256,14],[256,15,256,23],[256,24,256,27],[256,28,256,37],[253,10,253,15],[267,21,267,26],[267,28,267,35],[396,0,396,2],[397,0,397,2],[398,0,398,2],[407,0,407,2],[391,3,391,60],[315,1,315,13],[316,1,316,13],[317,1,317,13],[312,14,312,18],[315,14,315,18],[316,14,316,18],[317,14,317,18],[313,14,313,18],[322,0,322,29],[323,0,323,29],[322,30,323,60],[325,0,325,29],[330,0,330,29],[331,0,331,29],[331,30,331,34],[331,35,331,41],[312,38,312,43],[402,0,402,2],[403,0,403,2],[264,3,264,16],[268,21,269,26],[268,28,269,35],[268,37,269,48],[268,51,269,58],[269,4,269,6],[269,7,269,9],[269,10,269,15],[289,30,289,33],[289,36,289,44],[289,48,289,51],[289,54,289,58],[267,37,267,48],[267,51,267,58],[278,54,278,58],[289,12,289,27],[276,1,276,19],[276,22,276,39],[276,42,276,58],[277,1,277,9],[278,12,278,27],[277,30,277,33],[277,12,277,27],[278,30,278,33],[290,1,290,9],[290,12,290,27],[290,30,290,33],[290,36,290,45],[291,38,291,50],[292,1,292,13],[292,20,292,32],[268,4,268,6],[268,7,268,9],[268,10,268,15],[268,18,269,20],[286,1,286,12],[286,13,286,39],[287,1,287,19],[287,22,287,39],[287,42,287,58],[290,48,290,51],[290,54,290,58],[291,1,291,13],[291,20,291,32],[288,1,288,19],[288,22,288,39],[288,42,288,58],[289,1,289,9],[308,1,308,13],[308,53,308,56],[308,57,308,59],[310,19,310,37],[310,38,310,43],[309,44,309,52],[310,44,310,52],[310,53,310,56],[310,57,310,59],[309,14,309,18],[310,1,310,13],[310,14,310,18],[7,36,8,60],[13,36,21,60],[261,3,261,16],[261,17,261,49],[259,2,259,14],[284,1,284,37],[264,24,264,49],[267,4,267,15],[267,18,267,20],[279,1,279,13],[279,20,279,32],[271,1,272,40],[110,5,110,39],[99,33,99,43],[213,1,213,41],[51,6,51,21],[51,26,51,41],[51,49,51,59],[53,6,53,25],[53,30,53,33],[98,7,98,23],[99,7,99,23],[263,3,263,10],[263,24,263,49],[394,3,394,60],[395,3,395,60],[396,3,396,60],[397,3,397,60],[292,38,292,50],[294,1,294,23],[311,19,311,37],[311,38,311,43],[311,44,311,52],[314,14,314,18],[312,1,312,13],[313,1,313,13],[314,1,314,13],[303,0,303,60],[304,2,304,60],[305,2,305,60],[308,14,308,18],[309,1,309,13],[311,1,311,13],[311,14,311,18],[297,0,297,60],[312,44,312,52],[312,19,312,37],[312,53,312,56],[391,0,391,2],[392,0,392,2],[393,0,393,2],[394,0,394,2],[395,0,395,2],[404,0,404,2],[405,0,405,2],[418,41,418,49],[419,41,419,49],[408,3,408,60],[409,3,409,60],[408,0,408,2],[406,3,406,60],[404,3,404,60],[405,3,405,60],[407,3,407,60],[398,3,398,60],[399,3,399,60],[400,3,400,60],[401,3,401,60],[402,3,402,60],[403,3,403,60],[392,3,392,60],[393,3,393,60],[420,50,420,60],[421,50,421,60],[418,30,419,40],[420,30,421,40],[420,41,420,49],[421,41,421,49],[411,1,411,31],[410,41,410,52],[411,41,411,50],[410,0,410,30],[414,0,414,60],[415,0,415,60],[416,0,416,60],[417,0,417,16],[417,17,417,49],[417,50,417,60],[418,0,422,16],[418,50,418,60],[419,50,419,60],[422,17,422,49],[422,50,422,60],[418,17,421,29],[431,50,431,60],[432,17,432,49],[432,50,432,60],[433,17,433,49],[433,50,433,60],[434,17,434,49],[434,50,434,60],[435,0,435,16],[435,17,435,49],[435,50,435,60],[447,17,447,49],[447,50,447,60],[437,50,437,60],[438,17,438,49],[438,50,438,60],[423,0,426,16],[423,17,423,49],[423,50,423,60],[424,17,424,49],[424,50,424,60],[425,17,425,49],[425,50,425,60],[426,17,426,49],[426,50,426,60],[427,0,428,16],[427,17,427,49],[427,50,427,60],[428,17,428,49],[428,50,428,60],[429,0,429,49],[429,50,429,60],[430,0,430,49],[430,50,430,60],[431,17,431,49],[436,0,438,16],[436,17,436,49],[436,50,436,60],[437,17,437,49],[450,1,450,36],[451,1,451,60],[448,0,448,60],[439,17,439,49],[439,50,439,60],[440,17,440,49],[440,50,440,60],[441,17,441,49],[441,50,441,60],[442,17,442,49],[442,50,442,60],[443,17,443,49],[443,50,443,60],[444,17,444,49],[444,50,444,60],[445,0,447,16],[445,17,445,49],[445,50,445,60],[446,17,446,49],[446,50,446,60],[371,50,371,54],[371,55,371,60],[189,1,189,58],[190,7,190,58],[191,1,191,58],[192,4,192,6],[192,7,192,58],[212,1,212,38],[212,41,212,58],[365,0,365,29],[365,30,365,34],[365,35,365,41],[365,42,365,49],[365,50,365,54],[365,55,365,60],[312,57,312,59],[313,19,313,37],[311,53,311,56],[311,57,311,59],[308,19,308,37],[309,19,309,37],[308,38,308,43],[309,38,309,43],[308,44,308,52]]}
[null,null,null,null,null,null,"MINISTERUL AGRICULTURII ŞI DEZVOLTĂRII RURALE"]
[null,null,null,null,null,null,"AGENŢIA PENTRU FINANŢAREA INVESTIŢIILOR RURALE"]
[]
[null,null,null,null,null,null,null,null,null,null,null,null,null,null,null,null,null,null,null,null,null,null,null,null,null,null,null,null,null,null,null,null,null,null,null,null,null,null,null,null,null,null,"SECŢIUNE GENERALĂ"]
[]
["DATE DE ÎNREGISTRARE",null,null,null,null,null,null,null,null,null,null,null,null,null,null,null,null,null,null,null,null,null,null,null,null,null,null,null,null,null,null,null,null,null,null,null,"NUME ŞI PRENUME DIRECTOR GENERAL"]
[null,null,null,null,null,null,null,null,null,null,null,null,null,null,null,null,null,null,null,null,null,null,null,null,null,null,null,null,null,null,null,null,null,null,null,null,"ADJUNCT CRFIR"]
["Se completează de către Agenția pentru Finanțarea Investițiilor Rurale -Centrul"]
["Regional- Programul FEADR 2014-2020"]
[]
["OJFIR",null,null,null,null,null,null,null,null,null,null,null,null,null,null,null,null,null,null,null,null,null,null,null,null,null,null,null,null,null,null,null,null,null,null,null,"Semnătura Director General Adjunct CRFIR"]
[null,null,null,null,null,null,null,null,null,null,null,null,null,null,null,null,null,null,null,null,null,null,null,null,null,null,null,null,null,null,null,null,null,null,null,null,"Ştampila CRFIR"]
["Număr "]
["înregistrare"]
[]
[]
[]
[]
["Data Înregistrării"]
["Numele şi prenumele persoanei care înregistrează"]
["Semnătura:"]
["Data primirii cererii de finanţare la contractare:"]
["Se completează de către solicitant"]
["A PREZENTARE GENERALĂ"]
[]
[null,"A1 Sub-măsura   19.2 "]
[null,null,null,null,null,null,null,null,null,null,"Măsura M9/2A – Sprijin pentru fermele mici din teritoriul GAL „Câmpia Burnazului”"]
[]
[null,"A2 Denumire solicitant:"]
[]
[null,"A3 Titlu proiect:"]
[]
[]
[]
[]
[null,"A4 Descrierea succintă a proiectului:"]
[]
[]
[]
[]
[]
[]
[]
[]
[]
[]
[]
[null,null,"A5 Amplasarea proiectului:"]
[]
["Regiunea de dezvoltare:",null,null,null,null,null,null,null,null,null,null,null,null,null,null,null,null,null,null,null,null,null,null,null,null,null,null,"Judeţ:"]
[]
["Localitate",null,null,null,null,null,null,null,null,null,null,null,null,null,null,null,null,null,null,null,null,null,null,null,"Sat",null,null,null,null,null,null,null,null,null,null,null,null,null,null,null,null,null,"Cod Postal"]
[]
[null,"Strada",null,null,null,null,null,null,null,null,null,null,null,null,null,null,null,null,null,null,null,null,null,null,null,null,null,null,"Nr."]
[]
[null,"Obiectivele investitiei\nconform Planului de Afaceri",null,null,null,null,null,null,null,null,null,null,null,null,null,"Judeţ",null,null,null,null,null,null,null,null,null,null,null,"Comună",null,null,null,null,null,null,null,null,null,null,null,"Sat",null,null,null,null,null,null,null,null,null,null,"Sat"]
[]
[]
[]
[]
[]
[]
[]
[]
[]
[]
[]
[]
[]
[]
[]
[]
[]
[]
[]
[]
[]
[]
[]
[]
[]
[]
[]
[]
[]
[]
[]
[]
[]
[]
[]
[]
[]
[]
[]
[null,"A6 Detalii proiect"]
[null,null," - Sectorul exploatatie agricole:"]
[null,null,null,null,null,"Vegetal"]
[null,null,null,null,null,null,null,"culturi de câmp"]
[null,null,null,null,null,null,null,"horticultură"]
[null,null,null,null,null,null,null,"viticultură"]
[null,null,null,null,null,null,null,"culturi permanente (altele decât viticultura)"]
[null,null,null,null,null,"Zootehnic"]
[null,null,null,null,null,null,null,"bovine pentru carne;"]
[null,null,null,null,null,null,null,"bovine pentru lapte;"]
[null,null,null,null,null,null,null,"ovine şi caprine;"]
[null,null,null,null,null,null,null,"porcine;"]
[null,null,null,null,null,null,null,"păsări de curte"]
[null,null,null,null,null,"Mixte - culturi mixte;"]
[null,null,null,null,null,"Mixte - animale mixte;"]
[null,null,null,null,null,"Mixte - culturi şi creşterea animalelor, cu excepţia albinelor;"]
[null,null,null,null,null,"Albine "]
[null,null,null,null,null,"Altele"]
[null,null," - Sectorul obiectivului prevăzut în planul de afaceri:"]
[null,null,null,null,null,"Vegetal"]
[null,null,null,null,null,null,null,"culturi de câmp"]
[null,null,null,null,null,null,null,"horticultură"]
[null,null,null,null,null,null,null,"viticultură"]
[null,null,null,null,null,null,null,"culturi permanente (altele decât viticultura)"]
[null,null,null,null,null,"Zootehnic"]
[null,null,null,null,null,null,null,"bovine pentru carne;"]
[null,null,null,null,null,null,null,"bovine pentru lapte;"]
[null,null,null,null,null,null,null,"ovine şi caprine;"]
[null,null,null,null,null,null,null,"porcine;"]
[null,null,null,null,null,null,null,"păsări de curte"]
[null,null,null,null,null,"Mixte - culturi mixte;"]
[null,null,null,null,null,"Mixte - animale mixte;"]
[null,null,null,null,null,"Mixte - culturi şi creşterea animalelor, cu excepţia albinelor;"]
[null,null,null,null,null,"Albine ;"]
[null,null,null,null,null,"Altele"]
[]
[null,null," - Zona în care se află exploataţia:"]
[null,null,null,null,null,null,null,"zona normală;"]
[null,null,null,null,null,null,null,"zona montană;"]
[null,null,null,null,null,null,null,"zona cu constrângeri specifice;"]
[null,null,null,null,null,null,null,"zona cu constrângeri semnificative;"]
[]
[null,null," - Gradul de dotare al exploataţiei:"]
[null,null,null,null,null,null,null,"deţin baze de producţie specifice activităţii"]
[null,null,null,null,null,null,null,"nu deţin baze de producţie specifice activităţii"]
[null,null,null,null,null,null,null,null,null,null,"nu propun achizitii pentru realizarea bazei de producţie"]
[null,null,null,null,null,null,null,null,null,null,"propun achiziţii pentru realizarea bazei de producţie"]
[null,null," - Tipul producţiei:"]
[null,null,null,null,null,null,"Ecologică"]
[null,null,null,null,null,null,"Convenţională"]
[]
[null,"A7",null,null,null,"Declar pe propria răspundere că nu am accesat PNA 2014-2016"]
[null,null,null,null,null,"Declar pe proprie răspundere că nu am accesat PNA 2017-2019;"]
[null,null,null,null,null,"Declar pe proprie răspundere că nu am accesat PNA 2020-2022;"]
[null,null,null,null,null,"Declar pe propria răspundere că am accesat PNA 2014-2016/2017-2019/2020-2022 şi am beneficiat de\nfinanţare pentru următoarele achiziţii (se va specifica din care PNA s-au accesat), pentru care nu voi solicita\nfinanţare din PNDR 2014-2020 şi perioada de tranziţie 2021-2022:"]
["Anul accesării:",null,null,null,null,null,null,null,null," Produse Achiziţionaze prin program:"]
[]
[]
[]
[]
[null,null,null,null,null,"Declar pe proprie răspundere că nu voi accesa PNA 2020-2022 între momentul depunerii Cererii de\nFinanţare la PNDR 2014-2020 şi perioada de tranziţie 2021-2022 şi momentul acordării celei de-a doua\ntranşe de plată din PNDR 2014-2020 şi perioada de tranziţie 2021-2022;"]
[null,null,null,null,null,"Declar pe propria răspundere că nu voi solicita finanţare din PNDR 2014-2020 şi perioada de tranziţie\n2021-2022 pentru următoarele achiziţii pe care intenţionez să le decontez prin accesarea PNA 2020-2022:"]
[]
[]
[]
[]
[]
[null,null,"A8 DETALII PRIVIND TERENUL EXPLOATAŢIEI CARE STĂ LA BAZA CALCULULUI SO:"]
[null,"Judeţ",null,null,null,null,null,null,null,null,null,null,null,null,null,null,"Comună",null,null,null,null,null,null,null,null,null,null,null,null,null,null,null,null,null,null,null,"Sat"]
[]
[null,"Modalităţi deţinere"]
[null,null,null,"Moştenire / Donaţie",null,null,null,null,null,null,null,null,null,null,null,null,"Număr de ha",null,null,null,null,null,null,"Blocul fizic",null,null,null,null,null,null,null," ","Parcela",null,null,null,null,null,null,null,null,null,null,"Tarlaua"]
[null,null,null,"Achiziţie"]
[null,null,null,"Arendă / Concesiune/ Comodat / Închiriere/ Dare temporă în administrare sau folosinţă"]
[null,"Persoana care a dat moştenirea/donaţia/vânzător/arendator/concedent/comodant/locator / Persoana care a dat temporar în administrare sau folosință"]
[null,"Nume si prenume / Denumire",null,null,null,null,null,null,null,null,null,null,null,null,null,null,null,null,null,null,null,null,null,null,null,null,"Cod unic înregistrare/Cod numeric personal",null,null,null,null,null,null,null,null,null,null,null,null,null,null,null,null,"Act identitate (serie/număr) cetăţeni străini"]
[]
[]
[null,"Notă: Pentru a adăuga o noua inregistrare accesaţi foaia (sheet) corespunzătoare sau click pe butonul din dreapta",null,null,null,null,null,null,null,null,null,null,null,null,null,null,null,null,null,null,null,null,null,null,null,null,null,null,null,null,null,null,null,null,null,null,null,null,null," "]
[]
[null,null,"A9 Total punctaj estimat (autoevaluare) pentru criteriile de selecţie îndeplinite"]
[null,null,"Punctaj estimat (autoevaluare)"]
[null,null,"Detalierea criteriilor de selecţie îndeplinite:"]
["1. Principiul nivelului de calificare"]
[null,null,null,null,null,null,null,"1.1 Solicitantul a absolvit cu diplomă de studii superioare pentru ramura agricolă vizată în proiect (vegetal/ zootehnic/mixt)"]
[null,null,null,null,null,null,null,"1.2 Solicitantul a absolvit studii postliceale sau liceale pentru ramura agricolă vizată în proiect (vegetal/ zootehnic/ mixt)"]
[null,null,null,null,null,null,null,"1.3. Solicitantul prezintă dovada urmării unui curs de calificare de minimum Nivel I pentru ramura agricolă vizată în proiect (vegetal/ zootehnic/ mixt) finalizat cu un certificat de competențe profesionale* eliberat de un furnizor de formare profesională a adulților recunoscut de către Autoritatea Națională pentru Calificări (ANC)\nsau\nrecunoaşterea de către un centru de evaluare și certificare a competențelor profesionale obținute pe alte căi decât cele formale autorizat ANC a competenţelor dobândite ca urmare a experienţei profesionale.\n"]
[null,null,null,null,null,null,null,"1.4 Solicitantul prezintă dovada de absolvire a unor cursuri de inițiere/ instruire/ specializare pentru ramura agricolă vizată în proiect (vegetal/zootehnic/mixt), care nu necesită un document eliberat de formatorii recunoscuţi de către ANC, MMPS şi presupune un număr de ore sub numărul de ore aferent Nivelului I de calificare profesională."]
[null,"2. Principiul integrării în cadrul planurilor de afaceri a construirii și modernizării clădirilor cu destinație agro-alimentară, achiziției de echipamente în vederea îmbunătățirii activității exploatației"]
[null,null,null,null,null,null,null,"2.1 Planul de afaceri prevede construcție și/sau modernizare clădiri cu destinație agroalimentară"]
[null,null,null,null,null,null,null,"2.2 Planul de afaceri prevede achiziție de echipamente "]
[null,"3. Principiul apartenenţei la o formă asociativă cu rol economic (cooperativă, grup sau organizație de producători)"]
[null,null,null,null,null,null,null,"3.1. Solicitantul aparține unei forme asociative cu rol economic de minimum un an"]
[null,null,null,null,null,null,null,"3.2 Solicitantul aparține unei forme asociative de mai puțin de un an."]
[null,"4. Principiul prioritizării planurilor de afaceri care promovează activităţi inovative"]
[null,null,null,null,null,null,null,"4.1 Planul de afaceri promovează activităţi inovative"]
[null,"5. Principiul prioritizării planurilor de afaceri care vizează acțiuni de protecția mediului"]
[null,null,null,null,null,null,null,"5.1 Planul de afaceri promovează acțiuni de protecția mediului"]
[]
[]
["B INFORMAŢII PRIVIND SOLICITANTUL"]
["B1 Descrierea solicitantului"]
[null,"B1.1 Informaţii privind solicitantul"]
[null,"Data înființării",null,null,null,null,null,null,null,null,null,null,null,null,null,null,null,null,null,"Cod Unic de Înregistrare și/sau Codul de",null,null,null,null,null,null,null,null,null,null,null,null,null,null,null,null,null,null,null,null,null,null,null,"Statut juridic al solicitantului"]
[null,null,null,null,null,null,null,null,null,null,null,null,null,null,null,null,null,null,null,"Înregistrare Fiscală"]
[]
[]
[null,"Număr de înregistrare în registrul comerțului"]
[]
[null,"Codul CAEN al activităţii/activităţilor finanţate prin proiect"]
[]
[null,"Codul unic de înregistrare APIA",null,null,null,null,null,null,null,null,null,null,null,null,null,null,null,null,null,null,null,null,null,null,null,null,null,null,null,null,null,null,null,null,null,null,"Anul atribuirii codului"]
[]
[null,"Cod Registru Naţional al Exploataţiilor ANSVSA",null,null,null,null,null,null,null,null,null,null,null,null,null,null,null,null,null,null,null,null,null,null,null,null,null,null,null,null,null,null,null,null,null,null,null,null,null,"Anul atribuirii codului"]
[]
[null,"Cod Registru Naţional al Exploataţiilor ANSVSA pentru Asociaţie/Cooperativa "]
[null,"(obligatoriu pentru fermele zootehnice)"]
[null,"Cod STUPINA ANZ:"]
[null,"B1.2 Sediul social / Domiciliul stabil al solicitantului / Reşedinţa din România"]
[null,"Judeţ",null,null,null,null,null,null,null,null,null,null,null,null,null,null,null,null,null,null,null,null,"Localitate",null,null,null,null,null,null,null,null,null,null,null,null,null,null,null,null,null,null,null,"Sat"]
[]
[null,"Cod Poştal",null,null,null,null,null,null,null,null,null,"Strada",null,null,null,null,null,null,null,null,null,null,null,null,null,null,null,null,null,null,null,null,null,null,"Nr.",null,null,null,null,"Bloc",null,null,null,null,"Scara",null,null,null,null,"Et. ",null,null,null,"Ap."]
[]
[null,"Telefon fix",null,null,null,null,null,null,null,null,null,null,"Telefon mobil",null,null,null,null,null,null,null,null,null,null,"Fax",null,null,null,null,null,null,null,null,null,null,null,null,null,"E-mail"]
[]
[null,"Telefon fix/ mobil",null,null,null,null,null,null,null,null,null,null,null,null,null,null,null,null,null,null,"Fax",null,null,null,null,null,null,null,null,null,null,null,null,null,null,null,"E-mail"]
[]
[]
[null,"B1.3 Numele şi prenumele reprezentantului legal şi funcţia acestuia în cadrul organizaţiei, precum şi"]
[null,"specimenul de semnatură:"]
[]
[null,null,null,"Numele",null,null,null,null,null,null,null,null,null,null,"Prenumele",null,null,null,null,null,null,null,null,null,null,"Funcţia",null,null,null,null,null,null,null,null,null,null,"Reprezentant legal",null,null,null,null,null,null,null,null,null,null,"Specimen de"]
[null,null,null,null,null,null,null,null,null,null,null,null,null,null,null,null,null,null,null,null,null,null,null,null,null,null,null,null,null,null,null,null,null,null,null,null,null,null,null,null,null,null,null,null,null,null,null,"semnătură"]
[]
[null,null,null,null,null,null,null,null,null,null,null,null,null,null,null,null,null,null,null,null,null,null,null,null,null,null,null,null,null,null,null,null,null,null,null,null,"LEGAL"]
[]
[null,"Nivel de studii şi denumirea instituţiei care a emis documentul"]
[]
[]
[]
["B2 Informaţii referitoare la reprezentantul legal de proiect"]
[null,"B2.1 Date de identitate ale reprezentantului legal de proiect"]
[]
[null,null,null,"Data naşterii",null,null,null,null,null,null,null,null,null,null,null,null,null,null,null,null,null,null,null,null,"Cod numeric personal"]
[]
[]
[]
[null,null,null,null,"Act de identitate",null,null,null,null,null,null,null,null,null,null,null,null,null,"Seria",null,null,"Nr.",null,null,null,null,null,null,"Eliberat la data de",null,null,null,null,null,null,null,null,"de:",null,null,null,null,null,null,null,null,null,null,null,null,null,"Valabil până la:"]
[null,null,null,null,"B.I.",null,null,"C.I.",null,null,"Paşaport"]
[]
[]
[null," Date de identitate ale soţului / soţiei:"]
[null,null,null,"Data naşterii",null,null,null,null,null,null,null,null,null,null,null,null,null,null,null,null,null,null,null,null,"Cod numeric personal"]
[]
[]
[]
[null,null,null,null,"Act de identitate",null,null,null,null,null,null,null,null,null,null,null,null,null,"Seria",null,null,"Nr.",null,null,null,null,null,null,"Eliberat la data de",null,null,null,null,null,null,null,null,"de:",null,null,null,null,null,null,null,null,null,null,null,null,null,"Valabil până la:"]
[null,null,null,null,"B.I.",null,null,"C.I.",null,null,"Paşaport"]
[]
[]
[]
[null,null,null,null,"Asociat unic",null,null,null,null,null,null,null,null,null,null,"Asociat majoritar",null,null,null,null,null,null,null,null,null,null,null,null,"Administrator"]
[]
[]
[null,null,"Asociaţi"]
[]
[null,null,null,"Nume si prenume asociat"]
[]
[null,null,null,"Data naşterii",null,null,null,null,null,null,null,null,null,null,null,null,null,null,null,null,null,null,null,null,"Cod numeric personal"]
[]
[]
[]
[null,null,null,null,"Act de identitate",null,null,null,null,null,null,null,null,null,null,null,null,null,"Seria",null,null,"Nr.",null,null,null,null,null,null,"Eliberat la data de",null,null,null,null,null,null,null,null,"de:",null,null,null,null,null,null,null,null,null,null,null,null,null,"Valabil până la:"]
[null,null,null,null,"B.I.",null,null,"C.I.",null,null,"Paşaport"]
[]
[]
[null,"Notă: Pentru a adăuga o noua inregistrare accesaţi foaia (sheet) corespunzătoare sau click pe butonul din dreapta"]
[]
[]
[null,"B2.2 Domiciliul stabil al reprezentantului legal de proiect"]
[null,"Judeţ",null,null,null,null,null,null,null,null,null,null,null,null,null,null,null,null,null,null,null,null,"Localitate",null,null,null,null,null,null,null,null,null,null,null,null,null,null,null,null,null,null,null,"Sat"]
[]
[null,"Cod Poştal",null,null,null,null,null,null,null,null,null,null,"Strada",null,null,null,null,null,null,null,null,null,null,null,null,null,null,null,null,null,"Nr.",null,null,null,null,null,"Bloc",null,null,null,null,null,null,null,null,null,null,null,"Scara",null,null,null,null,null,"Ap."]
[]
[null,"Telefon fix",null,null,null,null,null,null,null,null,null,null,null,null,null,null,null,null,null,null,"Telefon mobil",null,null,null,null,null,null,null,null,null,null,null,null,null,null,null,null,null,"Fax"]
[]
[null,"E-mail"]
[]
[]
[null,"B2.3 Domiciliul stabil al reprezentantului legal de proiect"]
[]
[null,"Denumire angajator:"]
[null,"Judeţ",null,null,null,null,null,null,null,null,null,null,null,null,null,null,null,null,null,null,null,null,"Localitate",null,null,null,null,null,null,null,null,null,null,null,null,null,null,null,null,null,null,null,"Sat"]
[]
[null,"Cod Poştal",null,null,null,null,null,null,null,null,null,null,"Strada",null,null,null,null,null,null,null,null,null,null,null,null,null,null,null,null,null,"Nr.",null,null,null,null,null,"Bloc",null,null,null,null,null,null,null,null,null,null,null,"Scara",null,null,null,null,null,"Ap."]
[]
[null,"Telefon fix",null,null,null,null,null,null,null,null,null,null,null,null,null,null,null,null,null,null,"Telefon mobil",null,null,null,null,null,null,null,null,null,null,null,null,null,null,null,null,null,"Fax"]
[]
[null,"E-mail"]
[]
[]
[]
["B3 Date privind consultantul"]
[]
[null,"Denumirea Consultantului"]
[]
[null,"Codul Unic de Înregistrare",null,null,null,null,null,null,null,null,null,null,null,null,null,null,null,null,null,null,null,null,null,null,null,null,null,null,null,"Nr. înregistrare ONRC"]
[]
["C FINANȚĂRI NERAMBURSABILE solicitate și /sau obținute"]
[null,null,"C. Solicitantul a mai obținut finanțări nerambursabile ? Detailați cu datele solicitate in tabelul de mai jos*"]
[]
[]
[]
[null,"DENUMIRE PROGRAM FINANȚARE",null,null,null,null,null,null,null,null,null,null,null,null,"Număr proiecte",null,null,null,null,"Titlul Proiectui / Codul contractului/ Deciziei de finanțare ***",null,null,null,null,null,null,null,null,null,null,null,null,null,null,null,null,null,null,"Data accesării/ finalizării",null,null,null,null,null,"Valoarea accesării\nsprijinului\n(EUR)",null,null,null,null,null,null,null,null,"DA",null,null,null,"NU"]
[null,"Program Naţional Apicol (PNA)",null,null,null,null,null,null,null,null,null,null,null,null,null,null,null,null,null,null,null,null,null,null,null,null,null,null,null,null,null,null,null,null,null,null,null,null,null,null,null,null,null,null,null,null,null,null,null,null,null,null,null,null,0]
[null,"Programul Naţional de Sprijin al României în sectorul vitivinicol (PNS)"]
[null,"FEADR **"]
[null,"Alte programe europene**"]
[null,"Alte programe europene**"]
[null,"Alte programe europene**"]
[null,"Alte programe internaționale**"]
[null,"Alte programe internaționale**"]
[null,"Alte programe internaționale**"]
[null,null,null,"* se completează indiferent dacă solicitantul a obţinut / nu a obţinut finanţări nerambursabile"]
[null,null,null,"** se completează de către solicitant cu denumirea programului"]
[null,null,null,"*** se completează în funcţie de tipul proiectului"]
[]
["MINISTERUL AGRICULTURII ŞI DEZVOLTĂRII RURALE",null,null,null,null,null,null,null,null,null,null,null,null,null,null,null,null,null,null,null,null,null,null,null,null,null,null,null,null,null,"SECTIUNE SPECIFICA MĂSURA M9/2A "]
["AGENŢIA PENTRU FINANŢAREA INVESTIŢIILOR RURALE"]
[]
[]
["D. LISTA DOCUMENTELOR ANEXATE PROIECTELOR AFERENTE MĂSURII M9/2A ",null,null,null,null,null,null,null,null,null,null,null,null,null,null,null,null,null,null,null,null,null,null,null,null,null,null,null,null,null,null,null,null,null,null,null,null,null,null,null,null,null,null,null,null,null,null,null,null,null,null,null,null,null,null,"OPIS"]
[null,null,null,null,null,null,null,null,null,null,null,null,null,null,null,null,null,null,null,null,null,null,null,null,null,null,null,null,null,null,null,null,null,null,null,null,null,null,null,null,null,null,null,null,null,null,null,null,null,null,null,null,null,null,null,"documente"]
["A se anexa documentele în ordinea de mai jos:"]
["Lista documente",null,null,null,null,null,null,null,null,null,null,null,null,null,null,null,null,null,null,null,null,null,null,null,null,null,null,null,null,null,"Obligatoriu pentru toate proiectele",null,null,null,null,"Obligatoriu, dacă proiectul impune",null,null,null,null,null,null,"PAGINA de   la - până la",null,null,null,null,null,null,null,"Obligatoriu pentru toate proiectele",null,null,null,null,"Obligatoriu, dacă proiectul impune"]
["Documente specifice etapei",null,null,null,null,null,null,null,null,null,null,null,null,null,null,null,null,null,null,null,null,null,null,null,null,null,null,null,null,null,"DEPUNERE",null,null,null,null,null,null,null,null,null,null,null,null,null,null,null,null,null,null,null,"CONTRACTARE"]
["1. Planul de afaceri pentru dezvoltarea exploataţiei (în original)"]
["2. Copiile documentelor de proprietate/ folosinţă pentru exploataţia agricolă \n \na) Pentru terenul agricol:\n• documentul care atestă dreptul de proprietate asupra terenului agricol conform prevederilor legislaţiei în vigoare (contract de vânzare - cumpărare autentificat de notar, act de donaţie autentificat de notar, hotarâre judecatorească definitivă şi irevocabilă cu punere în posesie, certificat de moştenitor unic autentificat de notar, precum şi alte documente care demonstrează terţilor dreptul de proprietate conform prevederilor legislaţiei în vigoare autentificate la notar),"]
["şi/sau\n• tabelul centralizator cu suprafeţele luate în arendă pe categorii de folosinţă şi perioade de arendare, emis de Primărie, semnat de persoanele autorizate\nconform prevederilor legislaţiei în vigoare (care să conţină sumarul contractelor de arendare valabile la data depunerii Cererii de Finanţare); In cazul exploataţiilor care presupun înfiinţarea si/sau reconversia plantaţiilor pomicole, documentele trebuie sa fie valabile cel putin 15 ani începând cu anul depunerii cererii de finanţare, cu excepţia pepinierelor, culturilor de căpşun, zmeur, mur, coacăz şi agriş, unde perioada minimă este de 10 ani"]
["şi/sau\n• contractul de concesiune valabil la data depunerii Cererii de Finanţare însoţit de adresa emisă de concedent care conţine situaţia privind respectarea clauzelor contractuale, dacă este în graficul de realizare a investiţiilor prevăzute în contract şi alte clauze; "]
["şi/sau\n• contractul de comodat/contractul de închiriere/ documentul potrivit căruia suprafața de teren a fost dată temporar în administrare/ folosință"]
["şi/sau\n• document notarial care atestă constituirea patrimoniului de afectaţiune"]
["şi/sau\n• documentele pentru terenul ce constituie vatra stupinei: acte de proprietate conform legislaţiei în vigoare, sau contract de concesiune/ contract de arendă/ contract de închiriere/ contract de comodat valabile la data depunerii Cererii de finanţare. Suprafaţa de teren eligibilă pentru vatra stupinei este de minim 5mp/stup şi 50 mp pentru fiecare pavilion apicol."]
["b) Pentru construcţii permanente, conform prevederilor Legii nr. 50/1991, cu modificările și completările ulterioare:\n• documentul care atestă dreptul real principal asupra construcţiei: drept de proprietate, uz, uzufruct, superficie, servitute, concesiune (dobândit prin act autentic notarial de ex.: contract de vânzare-cumpărare, de schimb, de donaţie, certificat de moştenitor, act administrativ de restituire, hotărâre judecătorească)."]
["c) Pentru construcţii provizorii, conform prevederilor Legii nr. 50/1991, cu modificările și completările ulterioare:\n• documentul care atestă dreptul real principal asupra construcției: drept de proprietate, uz, uzufruct, superficie, servitute (dobândit prin act autentic notarial de ex.: contract de vânzare-cumpărare, de schimb, de donație, certificat de moștenitor, act administrativ de restituire, hotărâre judecătorească, lege)"]
[" sau\n• documentul care atestă dreptul de creanţă asupra construcţiei dobândit prin: concesiune, comodat, locaţiune. În cazul prezentării contractului de comodat/locațiune pentru construcțiile cu caracter provizoriu, conform prevederilor Legii nr. 50/1991, cu modificările și completările ulterioare, solicitantul trebuie să atașeze și acordul expres al proprietarului de drept."]
["d) Pentru animale, păsări şi familii de albine:\n• PAŞAPORTUL emis de ANZ pentru ecvideele (cabalinele) cu rasă şi origine"]
["• Copia adeverinţei emise de ANZ din care să rezulte codul de identificare a\nstupinei şi stupilor, numărul familiilor de albine"]
["• Pentru exploataţiile mixte şi zootehnice: Copia Registrului agricol emis de Primărie actualizată cu cel mult 30 de zile înaintea datei depunerii Cererii de finanţare, din care să rezulte dreptul de folosinţă (proprietate/arendă/concesiune) al terenului, dreptul de proprietate asupra animalelor (toate categoriile de animale domestice şi sălbatice aflate în captivitate în cadrul exploataţiei), cu ştampila primăriei şi menţiunea  \"Conform cu originalul\".  "]
["şi\n• Pentru exploataţiile vegetale: Copia Registrului Agricol emis de Primărie actualizată în anul depunerii Cererii de Finanţare, din care să rezulte dreptul de folosinţă (proprietate/arendă/concesiune) al terenului, dreptul de proprietate asupra animalelor (toate categoriile de animale domestice şi sălbatice aflate în captivitate în cadrul exploataţiei), cu ştampila primăriei şi menţiunea \"Conform cu originalul\"."]
["3. Copiile situaţiilor financiare pentru anii  “n” si “n-1”, unde “n” este anul anterior anului în care solicitantul depune Cererea de Finanţare, înregistrate la Administraţia Financiară:\na)Pentru societăţi comerciale: \n• Bilanţul (cod 10);"]
["• Contul de profit şi pierderi (cod 20);"]
["• Datele informative (cod 30);"]
["• Situaţia activelor imobilizate (cod 40)."]
["ŞI/SAU \n• Declaraţia de inactivitate (pentru societăţile înfiinţate în anii \"n\" şi/sau \"n-1\", care nu au avut activitate).\n \nSocietăţile comerciale înfiinţate în anul 2022 nu au obligaţia depunerii acestor documente."]
["b)Pentru persoane fizice autorizate, întreprinderi individuale şi întreprinderi\nfamiliale:\n• Declaraţia unică privind impozitul pe venit si contribuţiile sociale datorate de persoanele fizice\nPersoanele fizice autorizate, întreprinderile individuale şi întreprinderile familiale înfiinţate în anul 2022 nu au obligaţia depunerii acestor documente"]
["4. Certificat care să ateste lipsa datoriilor restante locale emis de Primăria de pe raza cărora îşi au sediul social şi punctele de lucru (în cazul în care solicitantul este proprietar asupra imobilelor)"]
["5. Copia actului de identitate al reprezentantului legal de proiect (asociat unic/asociat majoritar/administrator)"]
["6. Hotarârea adunării generale a asociaţiilor(AGA) persoanei juridice, prin care se desemnează reprezentantul legal sau administratorul (Acţionar Majoritar 50%+1) care să reprezinte societatea în relaţia cu AFIR şi care exercită un control efectiv pe teren lung (de cel puţin 6 ani/8 ani în cazul sectorului pomicol) în ceea ce priveşte deciziile referitoare la gestionare, beneficii, riscuri financiare în cadrul exploataţiei respective"]
["7. Documentele care demonstrează gradul de rudenie între asociaţi / membrii familiei din cadrul microintreprinderii / întreprinderii mici (copiile actelor de identitate, alte documente relevante) "]
["8. Documente care atestă pregătirea profesională:\n• documentul care atestă absolvirea învăţământului minim de 8 clase se\nataşează în cazul în care solicitantul nu are studii superioare / postliceale/ liceale;"]
["•  diploma de absolvire se ataşează în cazul studiilor superioare (diploma de doctor, diploma de disertatie, diploma de licenţă)"]
["• diploma de absolvire a studiilor postliceale (diploma/ certificatul de absolvire)/liceale (diploma de bacalaureat);"]
["• certificatul de calificare profesională se ataşează în cazul cursurilor de calificare/recalificare realizate de către furnizori de formare profesională a adulţilor autorizaţi pentru respectivul program de formare profesională (minim Nivelul I).\nDe asemenea sunt acceptate şi certificatele de absolvire a cursurilor de\ncalificare emise de ANCA, DAJ."]
["• document de recunoaştere a competenţelor profesionale obţinute pe alte căi\ndecât cele formale, care trebuie de asemenea să fie autorizat de Autoritatea\nNaţională pentru Calificări"]
["• certificatul de absolvire se ataşează în cazul cursurilor de perfecţionare/specializare/ iniţiere realizate de către furnizori de formare profesională a adulţilor autorizaţi pentru respectivul program de formare profesională sau documentul echivalent acestuia; (sub numărul de ore aferent Nivelului I de calificare profesională)"]
["9. Graficul de eşalonare a datoriilor către bugetul consolidat (în cazul în care\nbeneficiarul figureaza cu datorii restante fiscale şi sociale)"]
["10.  Copia contractului de colectare a gunoiului de grajd încheiat între solicitant şi deţinătorul platformei"]
["sau \n     Copia adeverinţei emisă de Primăria comunei pe teritoriul căreia se regăseşte platforma comunală, din care să rezulte faptul că aceasta va prelua gunoiul de grajd din exploataţia solicitantului"]
["11. Documentul emis de ANSVSA prin care se certifică înregistrarea exploataţiei ca fiind exploataţie comercială de tip A/ înregistrare sanitar veterinară pentru unităţile de vânzare directă de produse primare apicole, conform prevederilor Ordinului nr.16/2010, cu modificările şi completările ulterioare"]
["12. Document emis de ANSVSA prin care se certifică înregistrarea exploataţiei\napicole comerciale pentru material biologic, conform Ordinului ANSVSA nr.16 din 16.03.2010."]
["13. Copiile documentelor emise de autoritățile de mediu, sanitar, sanitar-veterinar, dacă este cazul;"]
["14. Documentul emis de instituţia financiar-bancară în care să se menţioneze denumirea şi adresa instituţiei financiar-bancare, titularul contului, CUI-ul titularului şi codul IBAN al contului prin care se derulează proiectul FEADR."]
["15. Documente solicitate pentru membru al unui grup de producători recunoscut, al unei cooperative sau al unei organizații de producători:\n- document emis de către grupul sau organizația de producători/ cooperativă\nagricolă, din care să reiasă că solicitantul este membru al acesteia,\n- statutul cooperativei agricole (după caz)."]
["16. Document emis de ANPM în conformitate cu Protocolul AFIR-ANPM-GNM (în cazul în care acțiunile propuse prin Planul de Afaceri (modernizări, construcții\netc.), impun obținerea unuia din următoarele documente:\n- Clasarea notificării\n- Decizia etapei de evaluare inițială (demararea procedurii de evaluare a\nimpactului asupra mediului)"]
["17. Declaratie pe propria raspundere conform Anexa nr. 4;"]
["18. Declaratie privind prelucrarea datelor cu caracter personal"]
["19. Alte documente justificative pe care solicitantul le consideră relevante pentru proiect (dacă este cazul)"]
[]
[]
[]
[]
[]
[]
["F. DECLARAŢIE PE PROPRIA RĂSPUNDERE A SOLICITANTULUI"]
["Prin această declaraţie solicitantul"]
[]
["cunoscând prevederile Codului Penal privind la falsul în declaraţii, care solicită asistenţă financiară nerambursabilă pentru proiectul măsurii M9/2A, intitulat"]
[]
[]
[]
[]
[null,null,null,"1. Declar pe propria răspundere că îndeplinesc condiţiile de eligibilitate privind acordarea sprijinului prevăzut în\nFişa Tehnică a măsurii M9/2A, Anexa nr. 3 la Ghidul Solicitantului, inclusiv criteriile de selecţie pentru care am\nfost punctat şi mă angajez să le respect pe o perioadă egală cu perioada de implementare şi monitorizare a\nproiectelor şi începând cu anul depunerii cererii de finanţare."]
[null,null,null,"2. Declar pe propria răspundere că toate informaţiile din Cererea de Finanţare şi din documentele anexate\nacesteia sunt corecte şi mă angajez să respect condiţiile cerute în reglementările referitoare la prezentul program\nşi pe cele legate de proiectul anexat şi să furnizez periodic, la cerere, documente justificative necesare."]
[null,null,null,"3. Declar pe propria răspundere că orice modificări aduse dreptului de proprietate sau de folosinţă vor fi\nnotificate AFIR înainte de data încheierii documentelor respective."]
[null,null,null,"4. Declar pe propria răspundere că pe perioada de valabilitate a Deciziei de finanţare, perioadă egală cu perioada\nde implementare şi monitorizare a proiectului începând cu anul depunerii cererii de finanţare, nu voi reduce\nsuprafaţa exploataţiei din anul 0, cuprinsă în proiect."]
[null,null,null,"5. Declar pe propria răspundere că pe perioada de implementare şi monitorizare a proiectului nu voi reduce\ndimensiunea economică prevăzută la depunerea cererii de finanţare a exploataţiei agricole pe durata de execuţie\na proiectului cu mai mult de 15%, cu excepţia pepinierelor unde marja de fluctuaţie de maximum 15% a\ndimensiunii economice poate fi mai mare, fără a reduce dimensiunea SO sub limita care defineşte mărimea\nexploataţiei pentru care proiectul este selectat şi aprobat."]
[null,null,null,"6. Declar că nu sunt într-unul din următoarele cazuri:"]
[null,null,null,"a. Acuzat din cauza unei greseli privind conduită profesională având ca soluţie finală res judicata (împotriva căreia niciun apel nu este posibil)."]
[null,null,null,"b. Vinovat de grave deficienţe de conduită profesională dovedite prin orice mijloace pe care Agenţia le poate justifica. "]
[null,null,null,"c. Vinovat de faptul că nu am prezentat informaţiile cerute de Autoritatea Contractantă ca o condiţie de participare la contractare."]
[null,null,null,"d. Nerespectarea prevederilor contractuale prin care nu mi-am îndeplinit obligaţiile contractuale în legatură cu un alt Contract/ Decizie de Finanţare încheiat cu AFIR sau alte contracte finanţate din fonduri europene."]
[null,null,null,"e. Încercarea de a obţine informaţii confidenţiale sau de influenţare a AFIR în timpul procesului de evaluare a proiectului şi nu voi face presiuni la adresa evaluatorului."]
[null,null,null,"7. Declar pe propria răspundere că mă angajez că toate obiectivele prevăzute în Planul de Afaceri să fie realizate\ncu respectarea prevederilor legislaţiei naţionale şi europene în vigoare şi după caz, să obţin autorizaţiile\nnecesare implementării proiectului până la verificarea îndeplinirii Planului de Afaceri la tranşa a doua de plată."]
[null,null,null,"8. Declar pe propria răspundere că în cazul în care nu respect oricare din punctele prevăzute în declaraţie,\nproiectul să devină neeligibil în baza criteriului \"Eligibilitatea solicitantului\" sau contractul să fie reziliat ."]
[null,null,null,"9. Declar pe propria răspundere că mă angajez că voi respecta pe toată perioada de valabilitate a Deciziei de\nFinanţare condiţiile de implementare, iar dacă se constată că nu mai sunt indeplinite obiectivele din Planul de\nAfaceri, Autoritatea Contractanta poate proceda, după caz, fie la recuperarea integrală a ajutorului financiar\nnerambursabil plătit şi la încetarea de drept a Deciziei de Finanţare, fie la recuperarea parţială, respectiv\nproporţional cu obiectivele nerealizate din Planul de Afaceri afectate de neregulă."]
[null,null,null,"10. a) Declar pe propria răspundere că nu am înscrisuri care privesc sancțiuni economico-financiare în cazierul\njudiciar şi îmi exprim consimțământul ca AFIR să acceseze Sistemul Informatic al Cazierului Judiciar (ROCRIS)\nadministrat de IGPR pentru a obţine extrasul după cazierul judiciar în etapa de încheiere a contractului de\nfinanţare pentru întreprindere şi pentru reprezentantul legal.\nb) Declar pe propria răspundere că întreprinderea mea nu figurează cu datorii restante fiscale şi sociale la\nbugetul de stat şi îmi exprim consimţământul ca AFIR să interogheze baza de date PATRIMVEN gestionată de\nANAF pentru verificarea situaţiei financiare şi fiscale a beneficiarului, în baza Protocolului de colaborare\ninstituţională AFIR-ANAF."]
[null,null,null,"11. Declar pe propria răspundere că în cazul în care, exploataţia zootehnică pe care o deţin va fi selectată şi\nprimeşte sprijin financiar nerambursabil, să o înregistrez la ANSVSA, ca exploataţie comercială de tip A/ să obţin\nînregistrare sanitar veterinară pentru unităţile de vânzare directă de produse primare apicole, până la data\nsemnării Deciziei de Finanţare."]
[null,null,null,"12. Declar pe propria răspundere că îmi voi stabili domiciliul în UAT în care este înregistrată exploatația, în\ntermenul de 6 luni de la data semnării Deciziei de finanțare."]
[null,null,null,"13. Declar pe propria răspundere că sediul social al solicitantului va fi localizat în UAT în care este înregistrată\nexploataţia."]
[null,null,null,"14. Declar pe propria răspundere că în cazul în care voi fi încadrat într-o activitate salarizată ulterior termenului\nde maxim 6 luni de la data semnării Deciziei de Finanţare, locul de muncă deţinut va fi în aceeaşi UAT sau în zona\nlimitrofă a UAT în care este înregistrată exploataţia agricolă şi voi notifica AFIR cu privire la locul de muncă, în\ntermen de 10 zile calendaristice de la data angajării."]
[null,null,null,"* Nerespectarea condițiilor privind stabilirea domiciliului, a sediului social în UAT-ul în care este înregistrată\nexploataţia agricolă şi a locului de muncă în aceeaşi UAT sau în zona limitrofă a UAT-ului în care este înregistrată\nexploataţia, în termenul de 6 luni şi îndeplinirea acestor condiţii pâna la sfârşitul perioadei de implementare de\nmaximum 33 luni, respectiv înainte de împlinirea termenului de depunere a celei de-a doua tranșe de plată, atrage\nrecuperarea parţială a sprijinului financiar, respectiv proporțional cu obiectivele nerealizate din Planul de afaceri,\nraportat la procentul de nerealizare al obiectivelor în cauză."]
[null,null,null,"15. Am luat la cunoştiinţă şi mă angajez să respect Politica anti-mită, publicată pe site-ul oficial al AFIR."]
[null,null,null,"16. Declar că sunt de acord ca AFIR să transmită informaţii legate de proiect către instituţii financiare, respectiv\ninstituţii de credit sau instituţii financiar nebancare înregistrate în Registrul special al Băncii Naţionale a\nRomâniei, în conformitate cu prevederile Legii nr. 93/2009, cu modificările şi completările ulterioare, privind\ninstituţiile financiare nebancare."]
[]
["Semnătura reprezentant legal ",null,null,null,null,null,null,null,null,null,null,null,null,null,null,null,null,null,null,null,null,null,null,null,null,null,null,null,null,null,null,null,null,null,null,null,null,null,null,null,null," Data:"]
[]
[]
[]
["Anexa INDICATORI DE MONITORIZARE"]
["Masura M9/2A - Sprijin pentru fermele mici din teritoriul GAL „Câmpia Burnazului”"]
[]
["1. Cod CAEN"]
["2. Tipul beneficiarului",null,null,null,null,null,null,null,null,null,null,null,null,null,null,null,null,"Solicitanți înființați în baza OUG 44/ 2008",null,null,null,null,null,null,null,null,null,null,null,null,"Bărbaţi",null,null,null,null,null,null,null,null,null,null,"< 40"]
[null,null,null,null,null,null,null,null,null,null,null,null,null,null,null,null,null,null,null,null,null,null,null,null,null,null,null,null,null,null,null,null,null,null,null,null,null,null,null,null,null,">= 40"]
[null,null,null,null,null,null,null,null,null,null,null,null,null,null,null,null,null,null,null,null,null,null,null,null,null,null,null,null,null,null,"Femei",null,null,null,null,null,null,null,null,null,null,"< 40"]
[null,null,null,null,null,null,null,null,null,null,null,null,null,null,null,null,null,null,null,null,null,null,null,null,null,null,null,null,null,null,null,null,null,null,null,null,null,null,null,null,null,">= 40"]
[null,null,null,null,null,null,null,null,null,null,null,null,null,null,null,null,null,"Persoană juridică"]
["3. Tipul de zonă",null,null,null,null,null,null,null,null,null,null,null,null,null,null,null,null,"Zonă normală"]
[null,null,null,null,null,null,null,null,null,null,null,null,null,null,null,null,null,"Zonă montană"]
[null,null,null,null,null,null,null,null,null,null,null,null,null,null,null,null,null,"Zonă constrângeri specifice"]
[null,null,null,null,null,null,null,null,null,null,null,null,null,null,null,null,null,"Zonă constrângeri semnificative"]
["4. Tipul producţiei",null,null,null,null,null,null,null,null,null,null,null,null,null,null,null,null,"Ecologică"]
[null,null,null,null,null,null,null,null,null,null,null,null,null,null,null,null,null,"Convenţională"]
["5. Suprafaţa exploataţiei agricole sprijinite (Ha)"]
["6. Dimensiunea economică a exploataţiei(intre 4.000 și 7.999 Euro - valoare Producţie Standard)"]
[null,null,null,null,null,null,null,null,null,null,null,null,null,null,null,null,null,"Culturi de câmp"]
[null,null,null,null,null,null,null,null,null,null,null,null,null,null,null,null,null,"Horticultură"]
[null,null,null,null,null,null,null,null,null,null,null,null,null,null,null,null,null,"Viticultură"]
[null,null,null,null,null,null,null,null,null,null,null,null,null,null,null,null,null,"Culturi permanente (altele decât viticultura)"]
["7. Tip ramură agricolă",null,null,null,null,null,null,null,null,null,null,null,null,null,null,null,null,"Creștere bovine pentru carne"]
[null,null,null,null,null,null,null,null,null,null,null,null,null,null,null,null,null,"Creștere bovine pentru lapte"]
[null,null,null,null,null,null,null,null,null,null,null,null,null,null,null,null,null,"Creștere ovine și caprine"]
[null,null,null,null,null,null,null,null,null,null,null,null,null,null,null,null,null,"Porcine"]
[null,null,null,null,null,null,null,null,null,null,null,null,null,null,null,null,null,"Păsări de curte"]
[null,null,null,null,null,null,null,null,null,null,null,null,null,null,null,null,null,"Mixte - culturi mixte"]
[null,null,null,null,null,null,null,null,null,null,null,null,null,null,null,null,null,"Mixte - animale mixte"]
[null,null,null,null,null,null,null,null,null,null,null,null,null,null,null,null,null,"Mixte - culturi și animale cu excepția albinelor"]
[null,null,null,null,null,null,null,null,null,null,null,null,null,null,null,null,null,"Albine"]
[null,null,null,null,null,null,null,null,null,null,null,null,null,null,null,null,null,"Altele"]
["8. Contribuie la Prioritatea 1",null,null,null,null,null,null,null,null,null,null,null,null,null,null,null,null,"M01 - Transfer de cunoştinţe şi acţiuni de informare"]
[null,null,null,null,null,null,null,null,null,null,null,null,null,null,null,null,null,"M02 - Servicii de consiliere"]
[null,null,null,null,null,null,null,null,null,null,null,null,null,null,null,null,null,"M16 - Cooperare"]
["Indic. nr. 1 - reprezintă codul CAEN pentru investiţia vizată prin proiect\nIndic. nr. 2, 3, 4, 7 - se va bifa doar o singură categorie/ categoria majoritară\nIndic. nr. 5 - se completează suprafaţa (Ha) exploataţiei agricole sprijinite prin proiect\nIndic. nr. 6 - se va completa dimensiunea economică a exploatatiei\nIndic. nr. 8 - se va completa din momentul demarării M01, M02, respectiv M16, cu bifa în dreptul măsurii corespunzătoare, dacă va fi cazul"]
[]
[null,"REGULI DE COMPLETARE"]
[null,"Trebuie bifate şi anexate toate documentele (1 şi 5) de pe coloana “DEPUNERE - Obligatoriu pentru toate proiectele” din secţiunea D  - Lista documentelor anexate.\n \nSe vor completa celulele albe din tabelul privind stabilirea categoriei de ferma cu suprafetele/numărul de capete aferent culturii/speciei, iar calculul valorii producţiei standard (SO) se va efectua automat.\n \nSe va completa Declaraţia pe propria raspundere a solicitantului cu datele solicitate (denumire/nume prenume solicitant,  titlul proiectului). \n \nCâmpurile Nivel de studii şi denumirea instituţiei care a emis documentul se va completa cu: competentele şi aptitudinile profesionale îndeplinite. \n \nPentru indicatorii de tip numeric care nu fac obiectul investitiei se va completa valoarea zero."]

{"sheet":"Sectiunea E","index":1,"n_rows":120,"n_cols":6,"rows_kept":120,"cut":false,"hidden":false,"merged":[[1,1,1,5],[2,1,3,1],[2,2,3,2],[2,3,3,3],[2,4,3,4],[2,5,3,5],[67,3,70,3],[28,1,36,1],[28,3,36,3],[37,1,45,1],[37,3,45,3],[46,1,54,1],[46,3,54,3],[91,4,92,4],[91,5,92,5],[0,1,0,5],[73,1,74,1],[73,2,74,2],[73,3,74,3],[75,1,79,1],[75,3,79,3],[91,1,92,1],[91,2,92,2],[91,3,92,3],[55,1,58,1],[55,3,58,3],[59,1,62,1],[59,3,62,3],[67,1,70,1]]}
[null,"E. LISTA COEFICIENŢILOR DE CALCUL AI PRODUCŢIEI STANDARD PENTRU VEGETAL/ ZOOTEHNIE "]
[null,"CALCULUL COEFICIENȚILOR DE PRODUCȚIE STANDARD PENTRU VEGETAL"]
[null,"Coduri EUROSTAT","Denumire cultura","SO 2013 Euro/ha","Suprafaţa (ha)","SO activitate existentă"]
[]
[null,"B_1_1_1","Grâu comun",614.09,null,{"$f":"E5*D5","v":0}]
[null,"B_1_1_2","Grâu dur",432.81,null,{"$f":"E6*D6","v":0}]
[null,"B_1_1_3","Secară",354.27,null,0]
[null,"B_1_1_4","Orz+Orzoaica",529.44000000000005,null,0]
[null,"B_1_1_5","Ovăz",331.88,null,0]
[null,"B_1_1_6","Porumb boabe",641.79999999999995,null,0]
[null,"B_1_1_7","Orez",913.26,null,0]
[null,"B_1_1_99","Alte cereale(sorgul, triticale, meiul, hrişca, iarba cănăraşului, altele)",452.74,null,0]
[null,"B_1_2_1","Mazăre boabe, fasole boabe, lupin dulce",533.77,null,0]
[null,"B_1_2_2","Linte, bob, măzăriche, năut",454.79,null,0]
[null,"B_1_3","Cartofi (inclusiv cartofi noi, material săditor, cartof dulce destinat consumului uman)",3167.88,null,0]
[null,"B_1_4","Sfeclă de zahăr",1449.74,null,0]
[null,"B_1_5","Plante rădăcinoase pentru nutreţ (sfecla furajeră, alte plante furajere din familia brasicaceelor, morcovi furajeri, batata (cartof dulce), păstârnac, ignama, manioc)",1101.45,null,0]
[null,"B_1_6_1","Tutun",1696.83,null,0]
[null,"B_1_6_2","Hamei",4105.24,null,0]
[null,"B_1_6_4","Rapiţă",647.72,null,0]
[null,"B_1_6_5","Floarea soarelui",564.52,null,0]
[null,"B_1_6_6","Soia",611,null,0]
[null,"B_1_6_7","In pentru ulei",1563.56,null,0]
[null,"B_1_6_8","Alte plante pentru ulei (ricin, şofrănaş, susan, arahide, mac, muştar, alte culturi oleaginoase)",374,null,0]
[null,"B_1_6_9","In textil",307.17,null,0]
[null,"B_1_6_10","Cânepa",518.11,null,0]
[null,"B_1_6_12","Plante medicinale şi aromatice inclusiv ceaiul, cafeaua şi cicoarea pentru cafea: muşeţel, mătrăguna, menta, mac, angelica,chimen, genţiana, iasomia, lavanda, levănţica, origanul, şofranul, salvia,valeriana, gălbeneaua, etc.",937.85,null,0]
[null,"B_1_6_99","Alte plante industriale - cicoarea, trestia de zahăr, alte plante tehnice nemenţionate în altă parte, sorgul tehnic (pentru maturi)",717.56,null,0]
[null,"B_1_7_1_1","Legume proaspete, pepeni şi căpşuni - în câmp –",6196.49,null,{"$f":"q*E29","v":0}]
[null,null,"- varza,conopida, broccoli, sparanghel",null,null,0]
[null,null,"- legume pt. frunze (praz, salata, spanac, etc.)",null,null,0]
[null,null,"- tomate",null,null,0]
[null,null,"- porumb dulce",null,null,0]
[null,null,"- legume cultivate pentru fructe - vinete, ardei, dovleci şi dovlecei, castraveciori",null,null,0]
[null,null,"- legume cultivate pentru rădăcină, bulbi, tuberculi (excepţie cartofi): morcovi, păstârnac, ceapa,usturoi,ridichii, napi",null,null,0]
[null,null,"- legume păstăi (fasole, mazăre cu excepţia lintei şi a năutului)",null,null,0]
[null,null,"- fructele plantelor neperene (căpşuni, pepeni galbeni, pepeni verzi, ananas)",null,null,0]
[null,"B_1_7_1_2","Legume proaspete, pepeni şi căpşuni - în gradina destinate comercializării:",7176.16,null,{"$f":"m*E38","v":0}]
[null,null,"- varza,conopida, broccoli, sparanghel",null,null,0]
[null,null,"- legume pt. frunze (praz, salata, spanac, etc.)",null,null,0]
[null,null,"- tomate",null,null,0]
[null,null,"- porumb dulce",null,null,0]
[null,null,"- legume cultivate pentru fructe - vinete, ardei, dovleci şi dovlecei, castraveciori",null,null,0]
[null,null,"- legume cultivate pentru rădăcină, bulbi, tuberculi (excepţie cartofi): morcovi, păstârnac, ceapa,usturoi,ridichii, napi",null,null,0]
[null,null,"- legume păstăi (fasole, mazăre cu excepţia lintei şi a năutului)",null,null,0]
[null,null,"- fructele plantelor neperene (căpşuni, pepeni galbeni, pepeni verzi, ananas)",null,null,0]
[null,"B_1_7_2","Legume proaspete, pepeni şi căpşuni - în sere şi solarii:",27507.66,null,{"$f":"p*E47","v":0}]
[null,null,"- varza, conopida, broccoli, sparanghel",null,null,0]
[null,null,"- legume pt. frunze (praz, salata, spanac, etc.)",null,null,0]
[null,null,"- tomate",null,null,0]
[null,null,"- porumb dulce",null,null,0]
[null,null,"- legume cultivate pentru fructe - vinete, ardei, dovleci şi dovlecei, castraveciori",null,null,0]
[null,null,"- legume cultivate pentru rădăcină, bulbi, tuberculi (excepţie cartofi): morcovi, păstârnac, ceapa, usturoi,ridichii, napi",null,null,0]
[null,null,"- legume păstăi (fasole, mazăre cu excepţia lintei şi a năutului)",null,null,0]
[null,null,"- fructele plantelor neperene (căpşuni, pepeni galbeni, pepeni verzi, ananas)",null,null,0]
[null,"B_1_8_1","Flori - în câmp",25527.46,null,{"$f":"i*E56","v":0}]
[null,null,"- bulbi de flori, cormi şi tuberculi",null,null,{"$f":"i*E57","v":0}]
[null,null,"- flori tăiate şi boboci",null,null,{"$f":"i*E58","v":0}]
[null,null,"- plante cu flori şi plante ornamentale",null,null,{"$f":"i*E59","v":0}]
[null,"B_1_8_2","Flori - în sere şi solarii",83743.81,null,{"$f":"k*E60","v":0}]
[null,null,"- bulbi de flori, cormi şi tuberculi",null,null,{"$f":"k*E61","v":0}]
[null,null,"- flori tăiate şi boboci",null,null,{"$f":"k*E62","v":0}]
[null,null,"- plante cu flori şi plante ornamentale",null,null,{"$f":"k*E63","v":0}]
[null,"B_1_9_1","Plante de nutreţ  - iarba temporară - iarba semănată pe terenuri arabile cedate producţiilor furajere erbacee pe o perioadă mai scurtă de 5 ani şi chiar sub un an",266.22000000000003,null,0]
[null,"B_1_9_2_1","Plante de nutreţ  - alte furaje verzi – porumb siloz",1029.19,null,0]
[null,"B_1_9_2_2","Plante de nutreţ – alte furaje verzi (culturi anuale de cereale recoltate verzi, sorgul anual, anumite graminee anuale cum sunt firuţa, cruciferele, facelia dacă sunt recoltate verzi şi nu au fost menţionate în altă parte, măzăriche, lupin dulce)",476.13,null,0]
[null,"B_1_9_2_99","Alte plante de nutreţ(diferite specii de trifoi anual sau peren-trifoi alb, trifoi roşu, trifoi de Alexandria - diferite varietăţi de lucernă ,)",662.78,null,0]
[null,"B_1_10","Seminţe şi seminceri",2993.73,null,{"$f":"y*E68","v":0}]
[null,null,"- seminţe de graminee",null,null,{"$f":"y*E69","v":0}]
[null,null,"- seminţe pentru horticultură",null,null,{"$f":"y*E70","v":0}]
[null,null,"- seminţe şi răsaduri pentru teren arabil cu excepţia cerealelor, a boabelor de leguminoase uscate, a cartofilor, a plantelor oleaginoase",null,null,{"$f":"y*E71","v":0}]
[null,"B_1­­_11","Alte plante (culturi de mică importanţă economică care nu pot fi încadrate în altă categorie)",592.99,null,{"$f":"E72*D72","v":0}]
[null,"B_3_1","Păşuni şi fâneţe permanente - păşuni şi fâneţe",295.04000000000002,null,0]
[null,"B_3_2","Păşuni şi fâneţe permanente - pe terenuri accidentate - păşuni sărace, inclusiv lăstărişul, de obicei nefertilizate şi neîntrebuinţate – păşuni cu randament scăzut situate în locuri accidentate şi la altitudini mari, care nu sunt cosite – terenuri stâncoase, terenuri mlăştinoase, bărăganuri",92.33,null,0]
[null,null,null,null,null,{"$f":"D74*E75","v":0}]
[null,"B_4_1_1_1","Fructe, pomi şi arbuşti - climă temperată:",2812.04,null,{"$f":"D76*E76","v":0}]
[null,null,"Mere",null,null,{"$f":"D77*E77","v":0}]
[null,null,"Pere",null,null,0]
[null,null,"Piersici şi nectarine",null,null,0]
[null,null,"Alte fructe: vişine, cireşe, caise, prune, gutui",null,null,0]
[null,"B _4_1_2","Livezi de coacăz, smochin, zmeur, muri,agrişe, cătină, afin, goji",3958.34,null,0]
[null,"B_4_1_3","Fructe, pomi şi arbuşti – nuci, alune",1754.4,null,0]
[null,"B_4_4_1","Vii - vin nobil",1981.83,null,0]
[null,"B_4_4_2","Vii - alte vinuri",1889.96,null,0]
[null,"B_4_4_3","Vii – struguri de masa",2170.52,null,0]
[null,"B_4_5","Pepiniere",5614.25,null,0]
[null,"B_4_6","Alte culturi  permanente: răchita, papura, bambus, salcie, brazi de crăciun",487.35,null,0]
[null,"B_6_1","Ciupercării  pe 100 mp (Nr. recolte pe an = 4)",4456.78,null,0]
[null,null,"TOTAL vegetal",null,null,{"$f":"SUM(F5:F88)","v":0}]
[]
[]
[null,"Coduri EUROSTAT","Denumire specii animale","SO 2013                                                                                                                                                                                                                                                                                                                                                                                                                                                                                                                                                                                    Euro/cap","Număr capete","SO activitate existentă"]
[]
[null,"C_1","Ecvidee",1404.31,null,{"$f":"E94*D94","v":0}]
[null,"C_2_1","Bovine  sub 1 an - total",216.38,null,{"$f":"E95*D95","v":0}]
[null,"C_2_2","Bovine sub 2 ani - masculi",344.4,null,0]
[null,"C_2_3","Bovine sub 2 ani - femele",341.49,null,0]
[null,"C_2_4","Bovine de 2 ani şi peste - masculi",817.88,null,0]
[null,"C_2_5","Bovine de 2 ani şi peste  - femele (juninci pentru îngrăşat, juninci pentru reproducţie)",801.38,null,0]
[null,"C_2_6","Vaci, bivoliţe  pentru lapte",1200.46,null,0]
[null,"C_2_99","Bovine de 2 ani şi peste - alte vaci",515.85,null,0]
[null,"C_3_1_1","Oi - mioare montate - oi de un an sau mai mult, destinate reproducerii, oile reformate care urmează să fete",54.91,null,0]
[null,"C_3_1_99","Oi - alte oi : miei, berbeci, oi reformate - oi sterpe care urmează a fi îngrăşate în vederea sacrificării",26.72,null,0]
[null,"C_3_2_1","Capre - capre montate - capre montate femele destinate reproducerii, capre reformate care urmează să fete",112.98,null,0]
[null,"C_3_2_99","Capre - alte capre: iezi, ţapi, capre reformate destinate sacrificării",39.67,null,0]
[null,"C_4_1_1","Porcine - tineret porcin sub 20 kg",33.36,null,0]
[null,"C_4_1_2","Porcine - scroafe pentru reproducţie peste 50 kg",262.55,null,0]
[null,"C_4_1_99","Porcine - alte porcine: porci la îngrăşat, vieri, scroafe destinate sacrificării",388.08,null,0]
[null,"C_5_1","Pui pentru carne *",473.59,null,0]
[null,"C_5_2","Găini ouătoare *",2156,null,0]
[null,"C_5_3_1","Curcani şi curci*",4205.5600000000004,null,0]
[null,"C_5_3_2","Raţe*",2824.99,null,0]
[null,"C_5_3_3","Gâşte*",3602.66,null,0]
[null,"C_5_3_4","Struţi*",30083.5,null,0]
[null,"C_5_3_99","Alte păsări: bibilici, porumbei, potârnichi, fazani, prepeliţe*",900.34,null,0]
[null,"C_6","Iepuri (femele iepuri)                                                                               ",13.91,null,0]
[null,"C_7","Familii de albine",59.62,null,0]
[null,null,"* Valoarea SO se referă la 100 capete"]
[null,null,"TOTAL zootehnic",null,null,{"$f":"SUM(F94:F117)","v":0}]
[null,null,"TOTAL GENERAL",null,null,{"$f":"F89+F119","v":0}]

{"sheet":"A8-Detalii privind terenul ","index":2,"n_rows":22,"n_cols":44,"rows_kept":22,"cut":false,"hidden":false,"merged":[[13,2,13,58],[14,1,14,14],[14,16,14,34],[14,36,14,58],[15,1,15,14],[15,16,15,34],[15,36,15,58],[22,1,22,24],[22,43,22,58],[17,3,17,14],[17,16,17,21],[17,23,17,29],[17,32,17,40],[18,3,18,14],[18,16,18,21],[18,23,18,29],[22,26,22,41],[8,1,8,58],[9,1,9,24],[9,26,9,41],[9,43,9,58],[10,1,10,24],[10,26,10,41],[10,43,10,58],[7,3,7,49],[4,1,4,14],[5,3,5,14],[5,16,5,21],[5,23,5,29],[5,32,5,40],[5,43,5,50],[6,3,6,14],[6,16,6,21],[6,23,6,29],[6,32,6,40],[6,43,6,50],[1,2,1,58],[2,1,2,14],[2,16,2,34],[2,36,2,58],[3,1,3,14],[3,16,3,34],[3,36,3,58],[16,1,16,14],[20,1,20,58],[21,1,21,24],[21,26,21,41],[21,43,21,58],[17,43,17,50],[18,32,18,40],[18,43,18,50],[19,3,19,49]]}
[]
[null,null,"A8 DETALII PRIVIND TERENUL EXPLOATAŢIEI CARE STĂ LA BAZA CALCULULUI SO:"]
[null,"Judeţ",null,null,null,null,null,null,null,null,null,null,null,null,null,null,"Comună",null,null,null,null,null,null,null,null,null,null,null,null,null,null,null,null,null,null,null,"Sat"]
[]
[null,"Modalităţi deţinere"]
[null,null,null,"Moştenire / Donaţie",null,null,null,null,null,null,null,null,null,null,null,null,null,null,null,null,null,null,null,"Blocul fizic",null,null,null,null,null,null,null," ","Parcela",null,null,null,null,null,null,null,null,null,null,"Tarlaua"]
[null,null,null,"Achiziţie"]
[null,null,null,"Arendă / Concesiune/ Comodat / Închiriere/ Dare temporă în administrare sau folosinţă"]
[null,"Persoana care a dat moştenirea/donaţia/vânzător/arendator/concedent/comodant/locator / Persoana care a dat temporar în administrare sau folosință"]
[null,"Nume si prenume / Denumire",null,null,null,null,null,null,null,null,null,null,null,null,null,null,null,null,null,null,null,null,null,null,null,null,"Cod unic înregistrare/Cod numeric personal",null,null,null,null,null,null,null,null,null,null,null,null,null,null,null,null,"Act identitate (serie/număr) cetăţeni străini"]
[]
[]
[]
[null,null,"A8 DETALII PRIVIND TERENUL EXPLOATAŢIEI CARE STĂ LA BAZA CALCULULUI SO:"]
[null,"Judeţ",null,null,null,null,null,null,null,null,null,null,null,null,null,null,"Comună",null,null,null,null,null,null,null,null,null,null,null,null,null,null,null,null,null,null,null,"Sat"]
[]
[null,"Modalităţi deţinere"]
[null,null,null,"Moştenire / Donaţie",null,null,null,null,null,null,null,null,null,null,null,null,null,null,null,null,null,null,null,"Blocul fizic",null,null,null,null,null,null,null," ","Parcela",null,null,null,null,null,null,null,null,null,null,"Tarlaua"]
[null,null,null,"Achiziţie"]
[null,null,null,"Arendă / Concesiune/ Comodat / Închiriere/ Dare temporă în administrare sau folosinţă"]
[null,"Persoana care a dat moştenirea/donaţia/vânzător/arendator/concedent/comodant/locator / Persoana care a dat temporar în administrare sau folosință"]
[null,"Nume si prenume / Denumire",null,null,null,null,null,null,null,null,null,null,null,null,null,null,null,null,null,null,null,null,null,null,null,null,"Cod unic înregistrare/Cod numeric personal",null,null,null,null,null,null,null,null,null,null,null,null,null,null,null,null,"Act identitate (serie/număr) cetăţeni străini"]

{"sheet":"Asociati","index":3,"n_rows":24,"n_cols":52,"rows_kept":24,"cut":false,"hidden":false,"merged":[[6,3,6,16],[6,24,6,49],[5,3,5,10],[5,24,5,49],[1,2,1,14],[3,3,3,16],[3,17,3,49],[9,28,9,35],[9,37,9,48],[9,51,9,58],[10,4,10,6],[10,7,10,9],[10,10,10,15],[10,18,11,20],[10,21,11,26],[10,28,11,35],[10,37,11,48],[9,4,9,15],[9,18,9,20],[9,21,9,26],[10,51,11,58],[11,4,11,6],[11,7,11,9],[23,51,24,58],[24,4,24,6],[24,7,24,9],[24,10,24,15],[22,28,22,35],[22,37,22,48],[22,51,22,58],[23,4,23,6],[23,7,23,9],[23,10,23,15],[23,18,24,20],[23,21,24,26],[23,28,24,35],[22,21,22,26],[23,37,24,48],[22,4,22,15],[22,18,22,20],[11,10,11,15],[16,3,16,16],[16,17,16,49],[18,3,18,10],[18,24,18,49],[19,3,19,16],[19,24,19,49]]}
[]
[null,null,"Asociaţi"]
[]
[null,null,null,"Nume si prenume asociat"]
[]
[null,null,null,"Data naşterii",null,null,null,null,null,null,null,null,null,null,null,null,null,null,null,null,null,null,null,null,"Cod numeric personal"]
[]
[]
[]
[null,null,null,null,"Act de identitate",null,null,null,null,null,null,null,null,null,null,null,null,null,"Seria",null,null,"Nr.",null,null,null,null,null,null,"Eliberat la data de",null,null,null,null,null,null,null,null,"de:",null,null,null,null,null,null,null,null,null,null,null,null,null,"Valabil până la:"]
[null,null,null,null,"B.I.",null,null,"C.I.",null,null,"Paşaport"]
[]
[]
[]
[]
[]
[null,null,null,"Nume si prenume asociat"]
[]
[null,null,null,"Data naşterii",null,null,null,null,null,null,null,null,null,null,null,null,null,null,null,null,null,null,null,null,"Cod numeric personal"]
[]
[]
[]
[null,null,null,null,"Act de identitate",null,null,null,null,null,null,null,null,null,null,null,null,null,"Seria",null,null,"Nr.",null,null,null,null,null,null,"Eliberat la data de",null,null,null,null,null,null,null,null,"de:",null,null,null,null,null,null,null,null,null,null,null,null,null,"Valabil până la:"]
[null,null,null,null,"B.I.",null,null,"C.I.",null,null,"Paşaport"]